bitfinex-derivatives/quotes_BTCF0:USTF0_20250207
["timestamp","ask_amount","ask_price","bid_price","bid_amount"]
[1738905632060,0.2053266,97391.0,97390.0,0.01]
[1738905633157,0.2063266,97391.0,97390.0,0.01]
[1738905640162,0.2063266,97391.0,97390.0,0.2153287]
[1738905640469,0.2063266,97391.0,97390.0,0.5761287]
[1738905640854,0.2063266,97391.0,97390.0,0.3708]
[1738905644860,0.2063266,97391.0,97390.0,0.5761287]
[1738905644861,0.001,97391.0,97390.0,0.5761287]
[1738905648965,0.2063266,97391.0,97390.0,0.5761287]
[1738905650868,0.001,97391.0,97390.0,0.5761287]
[1738905652167,0.2063266,97391.0,97390.0,0.5761287]
[1738905652761,0.2063266,97391.0,97390.0,0.3708]
[1738905654374,0.2063266,97391.0,97390.0,0.5761287]
[1738905660381,0.2063266,97391.0,97390.0,0.3708]
[1738905662869,0.2063266,97391.0,97390.0,0.5761287]
[1738905663978,0.2063266,97391.0,97390.0,0.3708]
[1738905664376,0.2063266,97391.0,97390.0,0.01]
[1738905664581,0.2063266,97391.0,97390.0,0.2153287]
[1738905665483,0.2063266,97391.0,97390.0,0.01]
[1738905675690,0.001,97391.0,97382.0,0.01532796]
[1738905675878,0.2053435,97384.0,97383.0,0.2053433]
[1738905676286,0.001,97391.0,97382.0,0.01532796]
[1738905676590,0.2053434,97383.0,97382.0,0.02567337]
[1738905678285,0.1993434,97383.0,97382.0,0.03367337]
[1738905678979,0.2003434,97383.0,97382.0,0.03367337]
[1738905679686,0.2013434,97383.0,97382.0,0.03967337]
[1738905681983,0.2013434,97383.0,97382.0,0.02434541]
[1738905682190,0.2013434,97383.0,97382.0,0.014]
[1738905684386,0.2053688,97371.0,97370.0,0.07969172]
[1738905684582,0.2053751,97368.0,97366.0,0.01026031]
[1738905685680,0.1973751,97368.0,97366.0,0.01026031]
[1738905686289,0.1903751,97368.0,97366.0,0.01026031]
[1738905686585,0.1903751,97368.0,97367.0,0.3108]
[1738905687381,0.1913751,97368.0,97367.0,0.3108]
[1738905687888,0.1923751,97368.0,97367.0,0.3108]
[1738905688587,0.1923751,97368.0,97358.0,0.07969172]
[1738905688588,0.002,97368.0,97359.0,0.406]
[1738905688779,0.205392,97360.0,97359.0,0.0452]
[1738905689786,0.205392,97360.0,97359.0,0.05569083]
[1738905690992,0.206392,97360.0,97359.0,0.05569083]
[1738905691384,0.207392,97360.0,97359.0,0.05569083]
[1738905691982,0.002,97360.0,97359.0,0.41649083]
[1738905694284,0.002,97360.0,97359.0,0.37129083]
[1738905698195,0.00015404,97373.0,97372.0,0.2053666]
[1738905698398,0.00015404,97373.0,97372.0,0.5661666]
[1738905699192,0.15241869,97378.0,97377.0,0.2053561]
[1738905700792,0.001,97378.0,97377.0,0.2053561]
[1738905701392,0.15395993,97386.0,97375.0,0.3608]
[1738905701594,0.15395993,97386.0,97385.0,0.5661392]
[1738905703301,0.15495993,97386.0,97385.0,0.5661392]
[1738905703800,0.00354124,97386.0,97385.0,0.5661392]
[1738905704299,0.00254124,97386.0,97385.0,0.5661392]
[1738905704899,0.2053019,97403.0,97385.0,0.3608]
[1738905705097,0.2053019,97403.0,97400.0,0.3608]
[1738905705597,0.2053038,97402.0,97400.0,0.3608]
[1738905706197,0.25091869,97407.0,97393.0,0.07969172]
[1738905706495,0.2053203,97394.0,97393.0,0.07969172]
[1738905706692,0.2053239,97393.0,97391.0,0.04815404]
[1738905708205,0.2053239,97393.0,97391.0,0.05833447]
[1738905708400,0.2083239,97393.0,97391.0,0.05833447]
[1738905708606,0.2083239,97393.0,97391.0,0.01033447]
[1738905708808,0.2083239,97393.0,97391.0,0.00015404]
[1738905709497,0.2103239,97393.0,97391.0,0.00015404]
[1738905712508,0.2053392,97385.0,97384.0,0.01011896]
[1738905712700,0.2053392,97385.0,97383.0,0.04788]
[1738905713101,0.2053392,97385.0,97383.0,0.05817422]
[1738905714209,0.0304,97384.0,97383.0,0.05817422]
[1738905714812,0.2357413,97384.0,97383.0,0.05817422]
[1738905717219,0.2357413,97384.0,97383.0,0.01029422]
[1738905717520,0.2053435,97383.0,97381.0,0.3608]
[1738905719506,0.0304,97384.0,97381.0,0.3608]
[1738905719507,0.2053455,97382.0,97381.0,0.3608]
[1738905720512,0.2053455,97382.0,97381.0,0.37347086]
[1738905721018,0.2053455,97382.0,97374.0,0.00015404]
[1738905721019,0.2053603,97375.0,97374.0,0.00015404]
[1738905723107,0.2063603,97375.0,97374.0,0.00015404]
[1738905724006,0.2053603,97375.0,97374.0,0.00015404]
[1738905724206,0.2063603,97375.0,97374.0,0.00015404]
[1738905727712,0.001,97375.0,97357.0,0.0476]
[1738905727921,0.2053898,97361.0,97360.0,0.45358738]
[1738905728214,0.2053898,97361.0,97360.0,0.37389566]
[1738905729312,0.2053898,97361.0,97360.0,0.57928766]
[1738905729815,0.2063898,97361.0,97360.0,0.57928766]
[1738905730009,0.2063898,97361.0,97360.0,0.37389566]
[1738905730213,0.2073898,97361.0,97360.0,0.37389566]
[1738905735509,0.2073898,97361.0,97360.0,0.3608]
[1738905735724,0.2053983,97357.0,97356.0,0.04728]
[1738905736219,0.205432,97341.0,97332.0,0.2527307]
[1738905736410,0.205432,97341.0,97329.0,0.3608]
[1738905736411,0.205432,97341.0,97340.0,0.37381023]
[1738905736723,0.07969172,97350.0,97329.0,0.3608]
[1738905736724,0.2054553,97330.0,97329.0,0.3608]
[1738905737516,0.2054553,97330.0,97329.0,0.37379741]
[1738905737912,0.2064553,97330.0,97329.0,0.37379741]
[1738905738924,0.2074553,97330.0,97329.0,0.37379741]
[1738905739429,0.2074553,97330.0,97329.0,0.3608]
[1738905739814,0.2054661,97325.0,97323.0,0.01256147]
[1738905740011,0.2054661,97325.0,97321.0,0.3919]
[1738905740524,0.205471,97323.0,97321.0,0.3608]
[1738905742521,0.206471,97323.0,97321.0,0.3608]
[1738905742927,0.001,97323.0,97310.0,0.12164494]
[1738905743227,0.2054954,97311.0,97309.0,0.3608]
[1738905743816,0.002,97323.0,97309.0,0.3608]
[1738905744027,0.2054975,97310.0,97309.0,0.3608]
[1738905746528,0.2064975,97310.0,97309.0,0.3608]
[1738905746823,0.2074975,97310.0,97309.0,0.3608]
[1738905747626,0.2074975,97310.0,97306.0,0.0322]
[1738905747627,0.2055038,97307.0,97306.0,0.0322]
[1738905749327,0.2075038,97307.0,97306.0,0.0322]
[1738905751122,0.2055165,97301.0,97300.0,0.46132]
[1738905751317,0.2055165,97301.0,97300.0,0.4608]
[1738905751714,0.002,97307.0,97302.0,0.2055123]
[1738905751919,0.002,97307.0,97304.0,0.2055095]
[1738905752321,0.2055165,97301.0,97300.0,0.46132]
[1738905752521,0.2065165,97301.0,97300.0,0.4608]
[1738905753035,0.2075165,97301.0,97300.0,0.4608]
[1738905753230,0.2065165,97301.0,97300.0,0.4608]
[1738905754032,0.2075165,97301.0,97300.0,0.4608]
[1738905754831,0.002,97301.0,97300.0,0.6663186]
[1738905755733,0.002,97301.0,97300.0,1.0271186]
[1738905762138,0.001,97301.0,97300.0,1.0271186]
[1738905763535,0.001,97301.0,97300.0,0.8216]
[1738905764846,0.2065165,97301.0,97300.0,0.8216]
[1738905772342,0.2065165,97301.0,97300.0,1.0271186]
[1738905772738,0.001,97301.0,97300.0,1.0271186]
[1738905774239,0.2065165,97301.0,97300.0,0.8216]
[1738905774434,0.2065165,97301.0,97300.0,0.4608]
[1738905774632,0.2065165,97301.0,97300.0,0.1]
[1738905778044,0.2396165,97301.0,97300.0,0.1]
[1738905778245,0.2055283,97296.0,97294.0,0.3408]
[1738905779047,0.0341,97301.0,97294.0,0.3408]
[1738905779245,0.2055235,97298.0,97294.0,0.3408]
[1738905779444,0.2055187,97300.0,97297.0,0.205525]
[1738905779838,0.2055211,97299.0,97297.0,0.205525]
[1738905780048,0.0331,97301.0,97294.0,0.3408]
[1738905780247,0.0341,97301.0,97294.0,0.3408]
[1738905780543,0.2055252,97297.0,97294.0,0.3408]
[1738905780746,0.0341,97301.0,97294.0,0.3408]
[1738905780948,0.001,97301.0,97294.0,0.3408]
[1738905781449,0.2055292,97295.0,97294.0,0.3408]
[1738905781633,0.001,97296.0,97294.0,0.3408]
[1738905781837,0.001,97296.0,97295.0,0.2055292]
[1738905782040,0.002,97301.0,97300.0,0.2055186]
[1738905782447,0.001,97301.0,97300.0,0.2055186]
[1738905782648,0.001,97295.0,97294.0,0.9077313]
[1738905782842,0.001,97295.0,97294.0,0.9071313]
[1738905783248,0.001,97301.0,97300.0,0.2055186]
[1738905785452,0.002,97295.0,97294.0,0.9077313]
[1738905785643,0.002,97295.0,97294.0,0.9071313]
[1738905786049,0.001,97295.0,97294.0,0.9071313]
[1738905786248,0.001,97301.0,97300.0,0.2055186]
[1738905786948,0.00015412,97305.0,97300.0,0.2055186]
[1738905787153,0.00015412,97305.0,97304.0,0.3608]
[1738905787948,0.00015412,97305.0,97304.0,0.5663102]
[1738905789649,0.00015412,97305.0,97304.0,0.58209573]
[1738905795752,0.00015412,97305.0,97304.0,0.37658553]
[1738905795959,0.20566212,97305.0,97304.0,0.3608]
[1738905797063,0.00015412,97305.0,97304.0,0.3608]
[1738905797360,0.00015412,97305.0,97304.0,0.5663102]
[1738905797361,0.20566212,97305.0,97304.0,0.5663102]
[1738905798066,0.20566212,97305.0,97304.0,0.3608]
[1738905798956,0.2055271,97296.0,97295.0,0.0798714]
[1738905799159,0.2055271,97296.0,97295.0,0.04676]
[1738905800064,0.2075271,97296.0,97295.0,0.04676]
[1738905800260,0.002,97296.0,97295.0,0.04676]
[1738905800462,0.002,97296.0,97295.0,0.2522892]
[1738905801259,0.002,97296.0,97295.0,0.26854765]
[1738905802668,0.002,97296.0,97295.0,0.22178765]
[1738905802861,0.002,97296.0,97295.0,0.26842765]
[1738905806877,0.002,97296.0,97294.0,0.40732]
[1738905807078,0.002,97296.0,97294.0,0.3608]
[1738905807079,0.2055292,97295.0,97294.0,0.3608]
[1738905808186,0.2055292,97295.0,97292.0,0.04652]
[1738905808187,0.2055334,97293.0,97292.0,0.04652]
[1738905809077,0.0323,97294.0,97288.0,0.01595293]
[1738905809377,0.2055397,97290.0,97289.0,0.04644]
[1738905810383,0.2055397,97290.0,97284.0,0.36132]
[1738905810384,0.2055503,97285.0,97284.0,0.3608]
[1738905810583,0.2055503,97285.0,97284.0,0.4072]
[1738905810778,0.2055503,97285.0,97284.0,0.37672086]
[1738905812182,0.2075503,97285.0,97284.0,0.37672086]
[1738905812992,0.2075503,97285.0,97284.0,0.3608]
[1738905817488,0.2055545,97283.0,97282.0,0.2055549]
[1738905817993,0.002,97285.0,97280.0,0.01599913]
[1738905818197,0.002,97285.0,97278.0,0.3608]
[1738905818494,0.205563,97280.0,97279.0,0.2055622]
[1738905819196,0.205563,97279.0,97278.0,0.3608]
[1738905821297,0.206563,97279.0,97278.0,0.3608]
[1738905821694,0.207563,97279.0,97278.0,0.3608]
[1738905822198,0.205582,97270.0,97269.0,0.0798714]
[1738905822392,0.3628,97279.0,97276.0,0.2055685]
[1738905822598,0.2055718,97275.0,97271.0,0.2055787]
[1738905822893,0.36295421,97279.0,97278.0,0.2055651]
[1738905823198,0.36295421,97279.0,97278.0,0.2517251]
[1738905823199,0.00215421,97279.0,97278.0,0.2517251]
[1738905823589,0.2055714,97275.0,97274.0,0.3608]
[1738905823792,0.2055735,97274.0,97273.0,0.04624]
[1738905824697,0.0323,97278.0,97266.0,0.04628]
[1738905825096,0.002,97274.0,97266.0,0.04628]
[1738905825398,0.2055883,97267.0,97266.0,0.04628]
[1738905825602,0.2055883,97267.0,97265.0,0.04624]
[1738905825988,0.04949799,97278.0,97265.0,0.04624]
[1738905826202,0.04949799,97278.0,97262.0,0.0158836]
[1738905826203,0.3608,97270.0,97262.0,0.0158836]
[1738905826502,0.2056074,97258.0,97257.0,0.00154196]
[1738905828193,0.2066074,97258.0,97257.0,0.00154196]
[1738905828398,0.2076074,97258.0,97257.0,0.00154196]
[1738905831099,0.002,97258.0,97257.0,0.00154196]
[1738905831609,0.2076074,97258.0,97257.0,0.00154196]
[1738905838607,0.5684074,97258.0,97257.0,0.00154196]
[1738905839104,0.2056412,97242.0,97241.0,0.12400508]
[1738905839411,0.2056412,97242.0,97241.0,0.06310508]
[1738905840312,0.2056412,97242.0,97241.0,0.2525633]
[1738905840508,0.2066412,97242.0,97241.0,0.2056433]
[1738905840907,0.002,97242.0,97234.0,0.3608]
[1738905841106,0.2056488,97239.0,97236.0,0.2056535]
[1738905841506,0.002,97242.0,97234.0,0.37651092]
[1738905841715,0.002,97242.0,97237.0,0.2056515]
[1738905842115,0.002,97242.0,97238.0,0.2056495]
[1738905842414,0.002,97242.0,97241.0,0.2056433]
[1738905847710,0.00015421,97251.0,97250.0,0.2056242]
[1738905848818,0.00115421,97251.0,97250.0,0.2056242]
[1738905849917,0.00115421,97251.0,97250.0,0.2524242]
[1738905855113,0.00115421,97251.0,97250.0,0.2675848]
[1738905855917,0.3608,97270.0,97250.0,0.0619606]
[1738905856223,0.3608,97270.0,97265.0,0.205591]
[1738905856724,0.3608,97270.0,97260.0,0.12183282]
[1738905856923,0.2055796,97272.0,97266.0,0.2055886]
[1738905857123,0.001,97270.0,97266.0,0.2055886]
[1738905857513,0.001,97270.0,97267.0,0.2055881]
[1738905857721,0.003,97270.0,97267.0,0.2055881]
[1738905858114,0.003,97270.0,97269.0,0.205584]
[1738905858419,0.003,97270.0,97260.0,0.13705606]
[1738905858619,0.006,97270.0,97263.0,0.205596]
[1738905858923,0.2055847,97269.0,97264.0,0.2055946]
[1738905859919,0.2055865,97268.0,97264.0,0.2055946]
[1738905860125,0.008,97270.0,97260.0,0.13705606]
[1738905860515,0.004,97270.0,97260.0,0.13705606]
[1738905860715,0.002,97269.0,97260.0,0.13705606]
[1738905861115,0.001,97269.0,97260.0,0.13705606]
[1738905861617,0.2055947,97264.0,97260.0,0.13705606]
[1738905861927,0.2055843,97269.0,97255.0,0.00015421]
[1738905862223,0.2055843,97269.0,97263.0,0.2055956]
[1738905862410,0.2055843,97269.0,97264.0,0.2055937]
[1738905862921,0.001,97269.0,97255.0,0.01484732]
[1738905863120,0.001,97269.0,97266.0,0.2055902]
[1738905863324,0.001,97269.0,97255.0,0.01484732]
[1738905863620,0.002,97269.0,97257.0,0.3608]
[1738905863828,0.002,97269.0,97268.0,0.2055861]
[1738905864126,0.3608,97274.0,97273.0,0.2055756]
[1738905866423,0.00015421,97275.0,97274.0,0.2055735]
[1738905867510,0.00615421,97275.0,97274.0,0.2520535]
[1738905867714,0.01115421,97275.0,97274.0,0.2520535]
[1738905872921,0.01115421,97275.0,97274.0,0.04648]
[1738905873624,0.01115421,97275.0,97274.0,0.2520535]
[1738905882232,0.01115421,97275.0,97274.0,0.2055735]
[1738905882430,0.01115421,97275.0,97274.0,0.2518535]
[1738905882737,0.01115421,97275.0,97274.0,0.04628]
[1738905884637,0.01115421,97275.0,97274.0,0.2518535]
[1738905885229,0.01115421,97275.0,97274.0,0.2830535]
[1738905886236,0.01115421,97275.0,97274.0,0.2830135]
[1738905887939,0.04577472,97293.0,97291.0,0.2055373]
[1738905888335,0.01497472,97293.0,97291.0,0.2055373]
[1738905888536,0.15241869,97294.0,97291.0,0.2055373]
[1738905888938,0.15241869,97295.0,97292.0,0.0462]
[1738905889244,0.15241869,97295.0,97292.0,0.2517339]
[1738905889245,0.018,97293.0,97292.0,0.2517339]
[1738905889745,0.009,97293.0,97292.0,0.2517339]
[1738905889935,0.018,97294.0,97292.0,0.2517339]
[1738905890442,0.009,97293.0,97292.0,0.2517339]
[1738905891935,0.018,97293.0,97292.0,0.2517339]
[1738905892145,0.009,97293.0,97292.0,0.2517339]
[1738905893045,0.018,97293.0,97292.0,0.2517339]
[1738905896446,0.018,97293.0,97292.0,0.26673]
[1738905901050,0.018,97293.0,97292.0,0.0611961]
[1738905901550,0.018,97293.0,97292.0,0.0608761]
[1738905901755,0.018,97293.0,97292.0,0.04588]
[1738905901950,0.018,97293.0,97290.0,0.04588]
[1738905902345,0.0309,97292.0,97290.0,0.04588]
[1738905903654,0.3917,97292.0,97283.0,0.00015421]
[1738905903853,0.3917,97292.0,97284.0,0.04588]
[1738905904046,0.2055445,97288.0,97284.0,0.04588]
[1738905904244,0.0633,97287.0,97284.0,0.04588]
[1738905904947,0.2055481,97286.0,97284.0,0.04588]
[1738905905355,0.0713,97287.0,97284.0,0.04588]
[1738905905753,0.0793,97287.0,97285.0,0.2055498]
[1738905906057,0.016,97287.0,97285.0,0.2055498]
[1738905907053,0.017,97287.0,97285.0,0.2055498]
[1738905909059,0.008,97287.0,97284.0,0.04588]
[1738905909261,0.008,97287.0,97286.0,0.2055481]
[1738905909650,0.008,97287.0,97283.0,0.00015421]
[1738905909849,0.0643,97286.0,97283.0,0.00015421]
[1738905911655,0.0643,97286.0,97284.0,0.04588]
[1738905912058,0.0673,97286.0,97284.0,0.04588]
[1738905912746,0.0643,97286.0,97284.0,0.04588]
[1738905912950,0.0683,97286.0,97284.0,0.04588]
[1738905913358,0.0723,97286.0,97284.0,0.04588]
[1738905915252,0.0723,97286.0,97285.0,0.2055502]
[1738905915457,0.0683,97286.0,97285.0,0.2055502]
[1738905915759,0.008,97286.0,97285.0,0.2055502]
[1738905916950,0.004,97286.0,97285.0,0.2055502]
[1738905917151,0.008,97286.0,97285.0,0.2055502]
[1738905920170,0.00154275,97301.0,97284.0,0.58739164]
[1738905920171,0.00154275,97301.0,97300.0,0.2055185]
[1738905920469,0.00154275,97301.0,97300.0,0.5663185]
[1738905921871,0.01054275,97301.0,97300.0,0.5673185]
[1738905922053,0.15241869,97315.0,97301.0,0.2055164]
[1738905922260,0.15241869,97315.0,97314.0,0.2054889]
[1738905923661,0.15241869,97315.0,97309.0,0.3608]
[1738905923863,0.16141869,97315.0,97314.0,0.001]
[1738905924967,0.009,97315.0,97314.0,0.001]
[1738905925366,0.002,97315.0,97309.0,0.3608]
[1738905925570,0.006,97315.0,97309.0,0.37475158]
[1738905925767,0.006,97315.0,97311.0,0.2054951]
[1738905926167,0.004,97315.0,97311.0,0.2054951]
[1738905926971,0.002,97315.0,97314.0,0.205489]
[1738905927169,0.003,97315.0,97310.0,0.0303]
[1738905927366,0.003,97315.0,97314.0,0.205489]
[1738905928774,0.004,97315.0,97314.0,0.205489]
[1738905928979,0.004,97315.0,97310.0,0.0303]
[1738905929172,0.004,97315.0,97309.0,0.37475158]
[1738905929474,0.006,97315.0,97309.0,0.01395158]
[1738905929667,0.006,97315.0,97308.0,0.2055007]
[1738905930069,0.004,97315.0,97308.0,0.21916256]
[1738905930477,0.002,97315.0,97308.0,0.01366186]
[1738905930674,0.002,97315.0,97305.0,0.12185382]
[1738905930869,0.002,97315.0,97305.0,0.13557989]
[1738905931066,0.002,97315.0,97311.0,0.205494]
[1738905931579,0.002,97315.0,97312.0,0.2054927]
[1738905931771,0.002,97315.0,97305.0,0.13557989]
[1738905931772,0.002,97315.0,97314.0,0.3608]
[1738905931962,0.032,97318.0,97314.0,0.3608]
[1738905932166,0.001,97315.0,97314.0,0.3608]
[1738905932771,0.004,97315.0,97314.0,0.3608]
[1738905933475,0.005,97315.0,97314.0,0.3608]
[1738905933670,0.005,97315.0,97314.0,0.40656]
[1738905935078,0.004,97315.0,97314.0,0.40656]
[1738905935380,0.006,97315.0,97314.0,0.40656]
[1738905938085,0.0332,97341.0,97314.0,0.47186]
[1738905938377,0.0332,97341.0,97331.0,0.12169961]
[1738905938577,0.0332,97341.0,97336.0,0.2054417]
[1738905939274,0.0352,97341.0,97336.0,0.2054417]
[1738905939969,0.0442,97341.0,97338.0,0.205438]
[1738905940175,0.0512,97341.0,97339.0,0.2054361]
[1738905940570,0.0512,97341.0,97340.0,0.205434]
[1738905941005,0.0512,97341.0,97336.0,0.206442]
[1738905941282,0.0512,97341.0,97340.0,0.205434]
[1738905941583,0.018,97341.0,97340.0,0.205434]
[1738905941769,0.009,97341.0,97340.0,0.205434]
[1738905941970,0.017,97341.0,97340.0,0.205434]
[1738905942575,0.008,97341.0,97340.0,0.206434]
[1738905942782,0.008,97341.0,97340.0,0.207434]
[1738905942783,0.017,97341.0,97340.0,0.207434]
[1738905943276,0.009,97341.0,97340.0,0.206434]
[1738905943585,0.017,97341.0,97340.0,0.002]
[1738905944180,0.2224319,97341.0,97340.0,0.002]
[1738905944685,0.2224319,97341.0,97340.0,0.0476]
[1738905947984,0.2224319,97341.0,97340.0,0.002]
[1738905949384,0.2054551,97330.0,97329.0,0.00015412]
[1738905949690,0.5662551,97330.0,97329.0,0.00015412]
[1738905950987,0.5662551,97330.0,97329.0,0.00115412]
[1738905950988,0.5732551,97330.0,97329.0,0.00115412]
[1738905951288,0.5802551,97330.0,97329.0,0.00215412]
[1738905954191,0.59402636,97330.0,97329.0,0.00215412]
[1738905955983,0.38857126,97330.0,97317.0,0.04588]
[1738905956188,0.2054805,97318.0,97317.0,0.04588]
[1738905956786,0.3608,97321.0,97311.0,0.36132]
[1738905957099,0.2054932,97312.0,97311.0,0.04636]
[1738905957397,0.2054932,97312.0,97311.0,0.04584]
[1738905957896,0.2054932,97312.0,97311.0,0.04684]
[1738905958487,0.2064932,97312.0,97311.0,0.04684]
[1738905959594,0.2064932,97312.0,97311.0,0.001]
[1738905961993,0.2055037,97307.0,97306.0,0.00015412]
[1738905963386,0.2055037,97307.0,97306.0,0.00115412]
[1738905963796,0.2055037,97307.0,97306.0,0.00515412]
[1738905964800,0.21957635,97307.0,97306.0,0.00515412]
[1738905964999,0.2055481,97286.0,97285.0,0.4055478]
[1738905965797,0.2055481,97286.0,97285.0,0.2]
[1738905966501,0.2065481,97286.0,97285.0,0.209]
[1738905966703,0.2075481,97286.0,97285.0,0.218]
[1738905967606,0.2075481,97286.0,97285.0,0.19984405]
[1738905967799,0.2065481,97286.0,97285.0,0.18984405]
[1738905967994,0.2075481,97286.0,97285.0,0.19884405]
[1738905968499,0.2075481,97286.0,97285.0,0.40439425]
[1738905968707,0.2075481,97286.0,97285.0,0.19884405]
[1738905969698,0.2065481,97286.0,97285.0,0.19484405]
[1738905970291,0.2055481,97286.0,97285.0,0.18184405]
[1738905970492,0.2055481,97286.0,97285.0,0.18384405]
[1738905977200,0.4276481,97286.0,97285.0,0.18384405]
[1738905981602,0.4276481,97286.0,97285.0,0.38939425]
[1738905982203,0.4276481,97286.0,97285.0,0.18384405]
[1738905983311,0.2055481,97286.0,97285.0,0.18384405]
[1738905985098,0.2055481,97286.0,97285.0,0.06135535]
[1738905985500,0.8755481,97286.0,97285.0,0.06135535]
[1738905987408,0.67,97286.0,97276.0,0.00015412]
[1738905987612,0.5663671,97277.0,97276.0,0.00015412]
[1738905988903,0.5663671,97277.0,97276.0,0.00315412]
[1738905989099,0.5663671,97277.0,97276.0,0.00915412]
[1738905989714,0.5663671,97277.0,97276.0,0.21472332]
[1738905989911,0.2055671,97277.0,97276.0,0.20872332]
[1738905990109,0.2065671,97277.0,97276.0,0.21472332]
[1738905991319,0.001,97277.0,97276.0,0.21472332]
[1738905992416,0.2065671,97277.0,97276.0,0.00915412]
[1738905992611,0.5673671,97277.0,97276.0,0.00915412]
[1738905992810,0.2065671,97277.0,97276.0,0.00915412]
[1738905995614,0.21996239,97277.0,97276.0,0.00915412]
[1738905996624,0.01439529,97277.0,97265.0,0.04568]
[1738905996924,0.2055903,97266.0,97265.0,0.04568]
[1738905997819,0.2055903,97266.0,97265.0,0.2512724]
[1738905998121,0.2055903,97266.0,97265.0,0.04568]
[1738905998320,0.2055903,97266.0,97265.0,0.05268]
[1738905998722,0.2055903,97266.0,97265.0,0.05068]
[1738905999018,0.2065903,97266.0,97265.0,0.2632724]
[1738905999520,0.2075903,97266.0,97265.0,0.2632724]
[1738906000109,0.2075903,97266.0,97265.0,0.05768]
[1738906004620,0.2075903,97266.0,97265.0,0.012]
[1738906008333,0.22103598,97266.0,97265.0,0.012]
[1738906009733,0.2075903,97266.0,97265.0,0.012]
[1738906016431,0.2379903,97266.0,97265.0,0.012]
[1738906018738,0.2056093,97257.0,97256.0,0.00015421]
[1738906019039,0.5664093,97257.0,97256.0,0.00015421]
[1738906019432,1.2364093,97257.0,97256.0,0.00015421]
[1738906020139,1.2374093,97257.0,97256.0,0.00015421]
[1738906020433,1.2384093,97257.0,97256.0,0.00015421]
[1738906021039,1.2374093,97257.0,97256.0,0.00015421]
[1738906021233,1.2384093,97257.0,97256.0,0.00015421]
[1738906022037,0.5684093,97257.0,97256.0,0.00015421]
[1738906025844,0.58144809,97257.0,97256.0,0.00015421]
[1738906032649,0.3628,97257.0,97256.0,0.20576571]
[1738906033132,0.3622823,97257.0,97256.0,0.20576571]
[1738906033732,0.5678916,97257.0,97256.0,0.00015421]
[1738906035845,0.5678916,97257.0,97256.0,0.20576571]
[1738906036040,0.5678916,97257.0,97256.0,0.00015421]
[1738906042042,0.0014823,97257.0,97256.0,0.20574561]
[1738906044742,0.0014823,97257.0,97256.0,0.56654561]
[1738906047045,0.0014823,97257.0,97256.0,0.20574561]
[1738906055450,0.0014823,97257.0,97256.0,0.56654561]
[1738906061260,0.00015421,97275.0,97274.0,0.2055534]
[1738906062668,0.00115421,97275.0,97274.0,0.2055534]
[1738906062870,0.00115421,97275.0,97274.0,0.2065534]
[1738906066583,0.00115421,97275.0,97274.0,0.21891342]
[1738906066770,0.00115421,97275.0,97274.0,0.2065534]
[1738906066976,0.20670551,97275.0,97274.0,0.001]
[1738906069384,0.00115421,97275.0,97274.0,0.001]
[1738906069584,0.00115421,97275.0,97274.0,0.2065534]
[1738906072379,0.20670551,97275.0,97274.0,0.2065534]
[1738906075689,0.20670551,97275.0,97274.0,0.2519934]
[1738906076193,0.00115421,97275.0,97274.0,0.2519934]
[1738906080093,0.20670551,97275.0,97274.0,0.04644]
[1738906081996,0.20670551,97275.0,97274.0,0.2519934]
[1738906082696,0.00115421,97275.0,97274.0,0.2519934]
[1738906097214,0.00115421,97275.0,97274.0,0.04644]
[1738906097416,0.20670551,97275.0,97274.0,0.04644]
[1738906098109,0.20670551,97275.0,97274.0,0.001]
[1738906101020,0.20670551,97275.0,97274.0,0.04644]
[1738906103321,0.20670551,97275.0,97274.0,0.2519934]
[1738906103909,0.20670551,97275.0,97274.0,0.001]
[1738906107419,0.20670551,97275.0,97274.0,0.2065534]
[1738906112125,0.00115421,97275.0,97274.0,0.2065534]
[1738906114125,0.15318131,97284.0,97274.0,0.3618]
[1738906114316,0.0317,97306.0,97302.0,0.2054931]
[1738906114621,0.0317,97306.0,97296.0,0.28543424]
[1738906115126,0.2371865,97306.0,97302.0,0.2054922]
[1738906116118,0.2371865,97306.0,97303.0,0.2054916]
[1738906117022,0.2451865,97306.0,97296.0,0.07992824]
[1738906117221,0.2451865,97306.0,97304.0,0.2054883]
[1738906117614,0.2541865,97306.0,97305.0,0.2054879]
[1738906118321,0.0457,97306.0,97305.0,0.2054879]
[1738906119815,0.0497,97306.0,97305.0,0.2054879]
[1738906121821,0.2551858,97306.0,97305.0,0.2054879]
[1738906122718,0.0497,97306.0,97305.0,0.2054879]
[1738906128028,0.018,97306.0,97305.0,0.5662879]
[1738906134026,0.018,97306.0,97305.0,0.6116879]
[1738906134428,0.2234858,97306.0,97305.0,0.6116879]
[1738906137031,0.018,97306.0,97305.0,0.6116879]
[1738906142337,0.2234858,97306.0,97305.0,0.6116879]
[1738906142742,0.2234858,97306.0,97305.0,0.4062]
[1738906142943,0.2234858,97306.0,97305.0,0.3608]
[1738906146749,0.2054921,97303.0,97302.0,0.205494]
[1738906147246,0.018,97306.0,97301.0,0.3608]
[1738906147451,0.2055006,97300.0,97299.0,0.2055003]
[1738906148848,0.2125006,97300.0,97299.0,0.2055003]
[1738906149542,0.2185006,97300.0,97299.0,0.2055003]
[1738906150450,0.013,97300.0,97299.0,0.2055003]
[1738906151945,0.2184985,97300.0,97299.0,0.2055003]
[1738906155749,0.2055048,97297.0,97296.0,0.00052]
[1738906156054,0.2055048,97297.0,97290.0,0.07992824]
[1738906156055,0.2055153,97292.0,97291.0,0.00015421]
[1738906157645,0.2085153,97292.0,97291.0,0.00015421]
[1738906158451,0.2115153,97292.0,97291.0,0.00015421]
[1738906164156,0.2055386,97281.0,97280.0,0.28546844]
[1738906164358,0.2055386,97281.0,97280.0,0.2055402]
[1738906165146,0.20568281,97290.0,97289.0,0.2055202]
[1738906165351,0.00015421,97290.0,97289.0,0.2055202]
[1738906166358,0.00315421,97290.0,97289.0,0.2055202]
[1738906166953,0.00515421,97290.0,97289.0,0.2055202]
[1738906171162,0.00515421,97290.0,97289.0,0.217461]
[1738906172363,0.00515421,97290.0,97285.0,0.3608]
[1738906172562,0.00515421,97290.0,97280.0,0.19025648]
[1738906172563,0.2055386,97281.0,97280.0,0.11032824]
[1738906172767,0.2055386,97281.0,97280.0,0.0304]